Workbook

Sheet Sheet1
A1: INSTRUCTIONS: Use this form when a single information collection document involves multiple reporting and recordkeeping requirements. The totals of the figures in cols. should be entered in item 13 of OMB-83-1: cols. (D) &/or (I) = 13a (respondent is only counted once); cols. F & I = 13b; cols. H & K = 13c. (F)Total/(D)Total = (E)Average (H)Total/(F)Total = (G)Average (K)Total/(I)Total = (J)Average NOTE: The columns will calculate automatically. If Col. E's response is something other than annually, i.e., 1/6 years, list as "1/6" & decimal will display. | I1: TITLE OF INFORMATION COLLECTION DOCUMENT | N1: OMB NO.
I3: Rural Community Development Initiative | N3: 0575-0180
N6: DATE PREPARED
N8: 2024-11-20
A10: IDENTIFICATION OF REPORTING OR RECORDKEEPING REQUIREMENT | H10: ANNUAL BURDEN
H12: REPORTS | M12: RECORDS | P12: RESPONDENT COST
O14: TOTAL
G15: FORMS NO (S) | H15: NO. OF | I15: NO OF | J15: TOTAL ANNUAL | K15: HOURS | L15: TOTAL | M15: NO. OF | N15: ANNUAL | O15: RECORD- | P15: COST | Q15: TOTAL
A16: SECTION OF | B16: DESCRIPTION | G16: (If "none" | H16: RESPONDENTS | I16: RESPONSES | J16: RESPONSES | K16: PER | L16: HOURS | M16: RECORD- | N16: HOURS PER | O16: KEEPING HOURS | P16: PER | Q16: COST
A17: NOTICE | G17: so state) | I17: PER | J17: (Col. D x E) | K17: RESPONSE | L17: (Col. F x G) | M17: KEEPERS | N17: RECORD- | O17: (Col. I x J) | P17: HOUR | Q17: (Col. H x L)
I18: RESPONDENT | N18: KEEPER
A19: (A) | B19: (B) | G19: (C) | H19: (D) | I19: (E) | J19: (F) | K19: (G) | L19: (H) | M19: (I) | N19: (J) | O19: (K) | P19: (L) | Q19: (M)
B20: Reporting Requirements - Non-Forms Applicants
B21: Association or Relationship with Rural Development Employees | G21: Written | H21: 65 | I21: 1.00 | J21: =H21*I21 -> 65.00 | K21: 0.25 | L21: =SUM(J21*K21) -> 16.25 | O21: =SUM(M21*N21) -> 0.00 | P21: $43.41 | Q21: =SUM(L21*P21) -> $705.41
B22: System for Award Management System (SAM) and Unique Entity Indentifier (UEI) | G22: Written | H22: 65 | I22: 1.00 | J22: =H22*I22 -> 65.00 | K22: 0.25 | L22: =J22*K22 -> 16.25 | O22: 0.00 | P22: $43.41 | Q22: =L22*P22 -> $705.41
A23: D. 2 | B23: Application Narrative | G23: Written | H23: 65 | I23: 1.00 | J23: =SUM(H23*I23) -> 65.00 | K23: 10.00 | L23: =SUM(J23*K23) -> 650.00 | O23: =SUM(M23*N23) -> 0.00 | P23: $43.41 | Q23: =SUM(L23*P23) -> $28,216.50
B24: Certification of Non-Lobbying Activities | G24: Written | H24: 65 | I24: 1.00 | J24: =SUM(H24*I24) -> 65.00 | K24: 0.25 | L24: =SUM(J24*K24) -> 16.25 | O24: =SUM(M24*N24) -> 0.00 | P24: $43.41 | Q24: =SUM(L24*P24) -> $705.41
B25: Reporting Requirements - Non-Forms Awardees/Grantees
A26: Grant Amounts | B26: Modification of Application for Reduced Grant Amount | G26: Written | H26: 20 | I26: 1.00 | J26: =SUM(H26*I26) -> 20.00 | K26: 1.00 | L26: =SUM(J26*K26) -> 20.00 | O26: =SUM(M26*N26) -> 0.00 | P26: $43.41 | Q26: =SUM(L26*P26) -> $868.20
B27: Performance Progresss Report | G27: Written | H27: 30 | I27: 3.00 | J27: 90.00 | K27: 1.00 | L27: 90.00 | O27: 0.00 | P27: $43.41 | Q27: =SUM(L27*P27) -> $3,906.90
B28: Performance Progresss Report (Final) | G28: Written | H28: 30 | I28: 1.00 | J28: 30.00 | K28: 2.00 | L28: 60.00 | O28: 0.00 | P28: $43.41 | Q28: $2,604.60
B29: Financial Reporting | G29: Written | H29: 30 | I29: 3.00 | J29: 90.00 | K29: 1.00 | L29: 90.00 | O29: 0.00 | P29: $43.41 | Q29: =SUM(L29*P29) -> $3,906.90
B30: Financial Management System | G30: Written | H30: 30 | I30: 3.00 | J30: 90.00 | K30: 6.00 | L30: 540.00 | O30: 0.00 | P30: $43.41 | Q30: $23,441.40
A31: Contents of Application | B31: Audits (over $750,000) | G31: Written | H31: 20 | I31: 1.00 | J31: =SUM(H31*I31) -> 20.00 | K31: 3.00 | L31: =SUM(J31*K31) -> 60.00 | O31: =SUM(M31*N31) -> 0.00 | P31: $43.41 | Q31: =SUM(L31*P31) -> $2,604.60
B32: Reporting Requirements – Non-forms - Record Keeping Requirements
B33: Data Collection by Race, Sex and National Origin -- Intermediaries - 30 -- Recipients & Beneficiaries- 810 | G33: Written | H33: 840 | I33: 1.00 | J33: =SUM(H33*I33) -> 840.00 | K33: 1.00 | L33: =SUM(J33*K33) -> 840.00 | O33: =SUM(M33*N33) -> 0.00 | P33: $43.41 | Q33: =SUM(L33*P33) -> $36,464.40
B34: SUBTOTAL | J34: =SUM(J21:J33) -> 1,440.00 | L34: =SUM(L21:L33) -> 2,398.75 | Q34: =SUM(Q21:Q33) -> 104,129.74
B35: Reporting Req. - Form Burden Approved under other OMB Numbers
A36: Contents of Application | B36: Standard Form 424, "Application for Federal Assistance" (Common Form - burden reported under RCF) | G36: SF-424 (4040-0004) | H36: 65 | I36: 1.00 | J36: 65.00 | K36: 1.00 | L36: 65.00 | O36: 0.00 | P36: $43.41 | Q36: =SUM(L36*P36) -> $2,821.65
B37: Standard Form LLL, “Disclosure of Lobbying Activities" | G37: SF-LLL (4040-0013) | H37: 65 | I37: 1.00 | J37: =SUM(H37*I37) -> 65.00 | K37: 0.25 | L37: =SUM(J37*K37) -> 16.25 | O37: =SUM(M37*N37) -> 0.00 | P37: $43.41 | Q37: =SUM(L37*P37) -> $705.41
A38: Grantee Req. | B38: Standard Form 270, "Request for Advance or Reimbursement" | G38: SF-270 (4040-0012) | H38: 30 | I38: 3.00 | J38: 90.00 | K38: 1.00 | L38: 90.00 | O38: 0.00 | P38: $43.41 | Q38: $3,906.90
B39: Standard Form 425, “Federal Financial Rep | G39: SF-425 (4040-0014) | H39: 30 | I39: 3.00 | J39: 90.00 | K39: 0.50 | L39: 45.00 | O39: 0.00 | P39: $43.41 | Q39: $1,953.45
A40: Required for each recipient D.2.f. | B40: Form RD 400-4, "Assurance Agreement" | G40: RD 400-4 | H40: 585 | I40: 1.00 | J40: =SUM(H40*I40) -> 585.00 | K40: 0.25 | L40: =SUM(J40*K40) -> 146.25 | O40: =SUM(M40*N40) -> 0.00 | P40: $43.41 | Q40: =SUM(L40*P40) -> $6,348.71
B41: Form RD 442-2, "Statement of Budget, Income, and Equity" | G41: RD 442-2 | H41: 30 | I41: 3.00 | J41: 90.00 | K41: 2.50 | L41: 225.00 | O41: 0.00 | P41: $43.41 | Q41: $9,767.25
B42: Form RD 442-3, "Balance Sheet" | G42: RD 442-3 | H42: 30 | I42: 3.00 | J42: 90.00 | K42: 1.00 | L42: 90.00 | O42: 0.00 | P42: $43.41 | Q42: $3,906.90
